[Event "*** Titled Tuesday Blitz"]
[Site "Chess.com"]
[Date "2020.04.21"]
[Round "4"]
[White "AndrewMaco"]
[Black "chenrip"]
[Result "1-0"]
[WhiteElo "2572"]
[BlackElo "2375"]
[TimeControl "180+1"]
[EndTime "10:40:52 PDT"]
[Termination "AndrewMaco won by resignation"]

1. e4 {[%clk 0:03:00.9]} 1... e6 {[%clk 0:03:00]} 2. d4 {[%clk 0:03:00.1]} 2...
d5 {[%clk 0:03:00.9]} 3. Nc3 {[%clk 0:02:59.3]} 3... Bb4 {[%clk 0:03:00.6]} 4.
e5 {[%clk 0:02:58.2]} 4... c5 {[%clk 0:03:00.4]} 5. a3 {[%clk 0:02:58.1]} 5...
Bxc3+ {[%clk 0:02:58.4]} 6. bxc3 {[%clk 0:02:59]} 6... Ne7 {[%clk 0:02:58.5]} 7.
Nf3 {[%clk 0:02:57.5]} 7... Nbc6 {[%clk 0:02:57.6]} 8. h4 {[%clk 0:02:56.5]}
8... Bd7 {[%clk 0:02:57.8]} 9. h5 {[%clk 0:02:56.7]} 9... h6 {[%clk 0:02:58.1]}
10. Bd3 {[%clk 0:02:52.6]} 10... Qa5 {[%clk 0:02:57.6]} 11. O-O {[%clk
0:02:51.3]} 11... c4 {[%clk 0:02:46.2]} 12. Be2 {[%clk 0:02:51.5]} 12... b5
{[%clk 0:02:40.2]} 13. Bd2 {[%clk 0:02:36.4]} 13... Qc7 {[%clk 0:02:30.6]} 14.
Nh4 {[%clk 0:02:36.2]} 14... Nf5 {[%clk 0:02:29.4]} 15. Nxf5 {[%clk 0:02:31.5]}
15... exf5 {[%clk 0:02:29.3]} 16. Bf3 {[%clk 0:02:31.8]} 16... Be6 {[%clk
0:02:29]} 17. a4 {[%clk 0:02:32.3]} 17... b4 {[%clk 0:02:27.6]} 18. a5 {[%clk
0:02:22]} 18... Rb8 {[%clk 0:02:22.2]} 19. Be3 {[%clk 0:02:01.6]} 19... Nxa5
{[%clk 0:02:05.7]} 20. cxb4 {[%clk 0:01:57.9]} 20... Rxb4 {[%clk 0:02:04.1]} 21.
Bd2 {[%clk 0:01:30.8]} 21... Rb5 {[%clk 0:02:03.6]} 22. Bc3 {[%clk 0:01:06.2]}
22... O-O {[%clk 0:02:02.4]} 23. Qd2 {[%clk 0:01:06.3]} 23... Nc6 {[%clk
0:02:01.9]} 24. Ra6 {[%clk 0:01:05.6]} 24... Rfb8 {[%clk 0:01:59.4]} 25. Raa1
{[%clk 0:01:02.3]} 25... Qb6 {[%clk 0:01:40.4]} 26. g3 {[%clk 0:01:00.8]} 26...
a5 {[%clk 0:01:31.6]} 27. Kh2 {[%clk 0:00:59.8]} 27... Ra8 {[%clk 0:01:28.3]}
28. Bg2 {[%clk 0:00:43.4]} 28... a4 {[%clk 0:01:27.8]} 29. Bh3 {[%clk
0:00:39.2]} 29... a3 {[%clk 0:01:26]} 30. Rg1 {[%clk 0:00:35.6]} 30... a2 {[%clk
0:01:23.8]} 31. g4 {[%clk 0:00:35.9]} 31... Ne7 {[%clk 0:01:15.2]} 32. g5 {[%clk
0:00:33.1]} 32... f4 {[%clk 0:01:05.5]} 33. gxh6 {[%clk 0:00:26.9]} 33... Bxh3
{[%clk 0:00:49]} 34. Rxg7+ {[%clk 0:00:27]} 34... Kh8 {[%clk 0:00:49.1]} 35.
Qxf4 {[%clk 0:00:22.7]} 35... Nf5 {[%clk 0:00:48.6]} 36. Rxf7 {[%clk 0:00:18.2]}
36... Qxh6 {[%clk 0:00:42.1]} 37. Qf3 {[%clk 0:00:16]} 37... Rb1 {[%clk
0:00:30.3]} 38. Kxh3 {[%clk 0:00:15.6]} 38... Ng7 {[%clk 0:00:21]} 39. Kh4
{[%clk 0:00:12.6]} 39... Rxa1 {[%clk 0:00:16.1]} 40. Bxa1 {[%clk 0:00:13.5]}
40... Rg8 {[%clk 0:00:13.7]} 41. Qf6 {[%clk 0:00:10.7]} 41... Qc1 {[%clk
0:00:10.4]} 42. h6 {[%clk 0:00:07]} 42... Qh1+ {[%clk 0:00:09.9]} 43. Kg3 {[%clk
0:00:06.9]} 43... Qg1+ {[%clk 0:00:07.8]} 44. Kf3 {[%clk 0:00:07.2]} 44... Qd1+
{[%clk 0:00:08.2]} 45. Ke3 {[%clk 0:00:06.9]} 45... Qc1+ {[%clk 0:00:07.2]} 46.
Kf3 {[%clk 0:00:06.2]} 46... Qd1+ {[%clk 0:00:07.4]} 47. Kg2 {[%clk 0:00:04.8]}
47... Qg4+ {[%clk 0:00:07.2]} 48. Kh2 {[%clk 0:00:05.2]} 48... Qh5+ {[%clk
0:00:06.4]} 49. Kg3 {[%clk 0:00:04.7]} 49... Kh7 {[%clk 0:00:05.4]} 50. Rxg7+
{[%clk 0:00:04.7]} 50... Kh8 {[%clk 0:00:04.7]} 51. Rxg8+ {[%clk 0:00:05]} 1-0

[Event "*** Titled Tuesday Blitz"]
[Site "Chess.com"]
[Date "2020.04.21"]
[Round "4"]
[White "r31415"]
[Black "temus_galaktionov"]
[Result "0-1"]
[WhiteElo "2368"]
[BlackElo "2747"]
[TimeControl "180+1"]
[EndTime "10:40:52 PDT"]
[Termination "temus_galaktionov won on time"]

1. e4 {[%clk 0:03:00.9]} 1... c6 {[%clk 0:03:00.9]} 2. d4 {[%clk 0:02:58.8]}
2... g6 {[%clk 0:03:01.8]} 3. Nc3 {[%clk 0:02:52.3]} 3... Bg7 {[%clk 0:03:00.9]}
4. Be3 {[%clk 0:02:51.7]} 4... d6 {[%clk 0:03:00.5]} 5. f3 {[%clk 0:02:50.7]}
5... Nd7 {[%clk 0:02:59.7]} 6. Qd2 {[%clk 0:02:47.5]} 6... e5 {[%clk 0:02:58.8]}
7. Nge2 {[%clk 0:02:42.8]} 7... Ne7 {[%clk 0:02:55]} 8. g4 {[%clk 0:02:42.7]}
8... f6 {[%clk 0:02:52.5]} 9. O-O-O {[%clk 0:02:33.9]} 9... Qa5 {[%clk
0:02:51.6]} 10. Kb1 {[%clk 0:02:31.4]} 10... Nb6 {[%clk 0:02:44.6]} 11. Ng3
{[%clk 0:02:30.9]} 11... Be6 {[%clk 0:02:43.9]} 12. a3 {[%clk 0:02:27.8]} 12...
Nc4 {[%clk 0:02:41.7]} 13. Bxc4 {[%clk 0:02:19.8]} 13... Bxc4 {[%clk 0:02:42.6]}
14. dxe5 {[%clk 0:02:16.5]} 14... dxe5 {[%clk 0:02:43.5]} 15. g5 {[%clk
0:01:47.4]} 15... O-O {[%clk 0:02:20.8]} 16. gxf6 {[%clk 0:01:37.5]} 16... Bxf6
{[%clk 0:02:20.6]} 17. h4 {[%clk 0:01:36.4]} 17... Rad8 {[%clk 0:02:18]} 18. Qg2
{[%clk 0:01:36.2]} 18... Rxd1+ {[%clk 0:02:17.3]} 19. Rxd1 {[%clk 0:01:35.1]}
19... Be6 {[%clk 0:01:57.4]} 20. h5 {[%clk 0:01:32.5]} 20... Kf7 {[%clk
0:01:53.9]} 21. hxg6+ {[%clk 0:01:27.9]} 21... hxg6 {[%clk 0:01:54.8]} 22. Rh1
{[%clk 0:01:25.5]} 22... Rh8 {[%clk 0:01:54.1]} 23. Rxh8 {[%clk 0:01:21.4]}
23... Bxh8 {[%clk 0:01:55]} 24. Qh2 {[%clk 0:01:20.1]} 24... Bg7 {[%clk
0:01:55.1]} 25. Qh7 {[%clk 0:01:17.8]} 25... Qd8 {[%clk 0:01:55.5]} 26. Qh2
{[%clk 0:01:12.3]} 26... b6 {[%clk 0:01:53.4]} 27. Kc1 {[%clk 0:01:10.4]} 27...
c5 {[%clk 0:01:48.8]} 28. Bg5 {[%clk 0:01:04.5]} 28... Qd7 {[%clk 0:01:38.6]}
29. Qd2 {[%clk 0:00:57.8]} 29... Qxd2+ {[%clk 0:01:32.6]} 30. Kxd2 {[%clk
0:00:57.8]} 30... Bf6 {[%clk 0:01:32.8]} 31. Be3 {[%clk 0:00:53.5]} 31... Ke8
{[%clk 0:01:20.7]} 32. Nb5 {[%clk 0:00:52.9]} 32... Nc6 {[%clk 0:01:19.4]} 33.
Nc7+ {[%clk 0:00:52.2]} 33... Kd7 {[%clk 0:01:19.9]} 34. Nxe6 {[%clk 0:00:52.3]}
34... Kxe6 {[%clk 0:01:20.8]} 35. Ne2 {[%clk 0:00:40.7]} 35... Na5 {[%clk
0:01:13.8]} 36. b3 {[%clk 0:00:40.3]} 36... Nc6 {[%clk 0:01:13.6]} 37. Nc3
{[%clk 0:00:39.5]} 37... Ne7 {[%clk 0:01:13.5]} 38. Nb5 {[%clk 0:00:38.8]} 38...
a5 {[%clk 0:01:06.8]} 39. Nc7+ {[%clk 0:00:38.4]} 39... Kd6 {[%clk 0:01:03.5]}
40. Ne8+ {[%clk 0:00:35.9]} 40... Ke6 {[%clk 0:01:03.2]} 41. Nc7+ {[%clk
0:00:35.7]} 41... Kd6 {[%clk 0:01:03]} 42. Ne8+ {[%clk 0:00:33.4]} 42... Ke6
{[%clk 0:01:03.1]} 43. Kc3 {[%clk 0:00:28.4]} 43... Bh4 {[%clk 0:00:47.6]} 44.
Kc4 {[%clk 0:00:28.6]} 44... Kd7 {[%clk 0:00:47.4]} 45. Ng7 {[%clk 0:00:26.6]}
45... Bf6 {[%clk 0:00:45.6]} 46. Kb5 {[%clk 0:00:19]} 46... Nc8 {[%clk
0:00:41.6]} 47. Bh6 {[%clk 0:00:15.3]} 47... Bd8 {[%clk 0:00:38.5]} 48. Kc4
{[%clk 0:00:10.2]} 48... Nd6+ {[%clk 0:00:31.4]} 49. Kd5 {[%clk 0:00:10]} 49...
Nf7 {[%clk 0:00:20.5]} 50. Be3 {[%clk 0:00:07.4]} 50... Bg5 {[%clk 0:00:20.6]}
51. Bf2 {[%clk 0:00:04]} 51... Nd8 {[%clk 0:00:19.1]} 52. b4 {[%clk 0:00:02.5]}
52... axb4 {[%clk 0:00:18.4]} 53. axb4 {[%clk 0:00:03.4]} 53... cxb4 {[%clk
0:00:18.9]} 54. Bxb6 {[%clk 0:00:04]} 54... Nc6 {[%clk 0:00:18.6]} 55. Ne6
{[%clk 0:00:02.7]} 55... Be7 {[%clk 0:00:19]} 0-1

[Event "*** Titled Tuesday Blitz"]
[Site "Chess.com"]
[Date "2020.04.21"]
[Round "4"]
[White "tigra"]
[Black "Gennady_Kozlov"]
[Result "0-1"]
[WhiteElo "2776"]
[BlackElo "2582"]
[TimeControl "180+1"]
[EndTime "10:40:53 PDT"]
[Termination "Gennady_Kozlov won by checkmate"]

1. e4 {[%clk 0:03:00.9]} 1... e6 {[%clk 0:02:59.5]} 2. d4 {[%clk 0:03:00.7]}
2... d5 {[%clk 0:03:00.1]} 3. Nc3 {[%clk 0:03:01.5]} 3... Nf6 {[%clk 0:02:59.5]}
4. e5 {[%clk 0:03:00]} 4... Nfd7 {[%clk 0:02:58.6]} 5. f4 {[%clk 0:03:00.6]}
5... c5 {[%clk 0:02:59.3]} 6. Nf3 {[%clk 0:03:01.1]} 6... Nc6 {[%clk 0:03:00]}
7. Be3 {[%clk 0:03:01.2]} 7... Qb6 {[%clk 0:02:59.6]} 8. Na4 {[%clk 0:03:00]}
8... Qa5+ {[%clk 0:02:59.5]} 9. c3 {[%clk 0:03:00.2]} 9... cxd4 {[%clk
0:02:59.5]} 10. b4 {[%clk 0:02:59.5]} 10... Nxb4 {[%clk 0:03:00.1]} 11. cxb4
{[%clk 0:02:59.6]} 11... Bxb4+ {[%clk 0:03:00.5]} 12. Bd2 {[%clk 0:03:00.1]}
12... Bxd2+ {[%clk 0:03:01.2]} 13. Nxd2 {[%clk 0:02:59.9]} 13... a6 {[%clk
0:03:01.9]} 14. Nb2 {[%clk 0:02:59.8]} 14... Nc5 {[%clk 0:02:58.6]} 15. Qg4
{[%clk 0:02:11.6]} 15... Qc3 {[%clk 0:02:50.4]} 16. Qxg7 {[%clk 0:02:10.1]}
16... Rf8 {[%clk 0:02:48.3]} 17. Rd1 {[%clk 0:01:06.4]} 17... Qe3+ {[%clk
0:02:19.4]} 18. Be2 {[%clk 0:01:03.5]} 18... d3 {[%clk 0:02:20.3]} 19. Qg4
{[%clk 0:01:01]} 19... dxe2 {[%clk 0:02:16.3]} 20. Qxe2 {[%clk 0:00:53.8]} 20...
Qxf4 {[%clk 0:02:16.9]} 21. g3 {[%clk 0:00:48.4]} 21... Qd4 {[%clk 0:02:13.8]}
22. Nb3 {[%clk 0:00:42.4]} 22... Qc3+ {[%clk 0:02:10.9]} 23. Kf2 {[%clk
0:00:18.2]} 23... Nxb3 {[%clk 0:02:03.2]} 24. axb3 {[%clk 0:00:19.1]} 24... Qxb3
{[%clk 0:02:03.7]} 25. Kg2 {[%clk 0:00:18.7]} 25... Bd7 {[%clk 0:02:01.9]} 26.
Qd2 {[%clk 0:00:16.1]} 26... Bc6 {[%clk 0:01:51.4]} 27. Rhf1 {[%clk 0:00:16.3]}
27... O-O-O {[%clk 0:01:43.5]} 28. Nd3 {[%clk 0:00:15.9]} 28... d4+ {[%clk
0:01:31.1]} 29. Kh3 {[%clk 0:00:16.2]} 29... Qc3 {[%clk 0:01:29.3]} 30. Qe2
{[%clk 0:00:16.1]} 30... Kb8 {[%clk 0:01:22.2]} 31. Rc1 {[%clk 0:00:16.8]} 31...
Qa5 {[%clk 0:01:21.2]} 32. Rc5 {[%clk 0:00:16.9]} 32... Qb6 {[%clk 0:01:17.6]}
33. Qd2 {[%clk 0:00:13.6]} 33... Rd5 {[%clk 0:01:15.8]} 34. Rfc1 {[%clk
0:00:13.3]} 34... Rxc5 {[%clk 0:01:14.6]} 35. Nxc5 {[%clk 0:00:14.2]} 35... Rd8
{[%clk 0:01:10.9]} 36. Qd3 {[%clk 0:00:14.7]} 36... Qb5 {[%clk 0:01:05.6]} 37.
Qxh7 {[%clk 0:00:13.9]} 37... d3 {[%clk 0:01:05.6]} 38. Qh4 {[%clk 0:00:12.4]}
38... Rd5 {[%clk 0:01:03.1]} 39. Ne4 {[%clk 0:00:10.9]} 39... d2 {[%clk
0:01:00.9]} 40. Rd1 {[%clk 0:00:11.3]} 40... Rd4 {[%clk 0:00:50.3]} 41. Qh8+
{[%clk 0:00:10.2]} 41... Ka7 {[%clk 0:00:50.2]} 42. Nd6 {[%clk 0:00:10.7]} 42...
Bg2+ {[%clk 0:00:21.2]} 43. Kxg2 {[%clk 0:00:09.6]} 43... Qe2+ {[%clk
0:00:22.1]} 44. Kh3 {[%clk 0:00:09.7]} 44... Qxd1 {[%clk 0:00:20.4]} 45. Nc8+
{[%clk 0:00:09.3]} 45... Kb8 {[%clk 0:00:21]} 46. Nd6+ {[%clk 0:00:09.7]} 46...
Ka7 {[%clk 0:00:21.3]} 47. Nc8+ {[%clk 0:00:09.7]} 47... Kb8 {[%clk 0:00:21.9]}
48. Nd6+ {[%clk 0:00:07.2]} 48... Kc7 {[%clk 0:00:22.5]} 49. Qc8+ {[%clk
0:00:06.7]} 49... Kb6 {[%clk 0:00:23.1]} 50. Qxb7+ {[%clk 0:00:07.5]} 50... Ka5
{[%clk 0:00:20.3]} 51. Qc7+ {[%clk 0:00:08.4]} 51... Ka4 {[%clk 0:00:19.8]} 52.
Qc6+ {[%clk 0:00:08.7]} 52... Kb3 {[%clk 0:00:19.5]} 53. Qb6+ {[%clk 0:00:09.2]}
53... Kc3 {[%clk 0:00:19.5]} 54. Qc5+ {[%clk 0:00:07.8]} 54... Kd3 {[%clk
0:00:19.6]} 55. Qa3+ {[%clk 0:00:07.1]} 55... Ke2 {[%clk 0:00:18.7]} 56. Qb2
{[%clk 0:00:05.2]} 56... Qf1# {[%clk 0:00:17.7]} 0-1

[Event "*** Titled Tuesday Blitz"]
[Site "Chess.com"]
[Date "2020.04.21"]
[Round "4"]
[White "AttilaTurzo"]
[Black "Leo_C"]
[Result "1-0"]
[WhiteElo "2471"]
[BlackElo "2286"]
[TimeControl "180+1"]
[EndTime "10:40:53 PDT"]
[Termination "AttilaTurzo won by resignation"]

1. e4 {[%clk 0:03:00.9]} 1... c5 {[%clk 0:02:53.7]} 2. Nf3 {[%clk 0:03:00.6]}
2... Nc6 {[%clk 0:02:53.4]} 3. d4 {[%clk 0:03:01.2]} 3... cxd4 {[%clk
0:02:53.5]} 4. Nxd4 {[%clk 0:03:02.1]} 4... Nf6 {[%clk 0:02:54.1]} 5. Nc3 {[%clk
0:03:02.6]} 5... e5 {[%clk 0:02:54.2]} 6. Ndb5 {[%clk 0:03:02.9]} 6... d6 {[%clk
0:02:54.6]} 7. Bg5 {[%clk 0:03:03.3]} 7... a6 {[%clk 0:02:54.7]} 8. Na3 {[%clk
0:03:02.6]} 8... b5 {[%clk 0:02:54.9]} 9. Bxf6 {[%clk 0:03:03]} 9... gxf6 {[%clk
0:02:54.5]} 10. Nd5 {[%clk 0:03:02.7]} 10... f5 {[%clk 0:02:54.9]} 11. Bd3
{[%clk 0:03:03]} 11... Be6 {[%clk 0:02:53.2]} 12. Qh5 {[%clk 0:03:02.3]} 12...
Bg7 {[%clk 0:02:50.6]} 13. O-O {[%clk 0:03:00.5]} 13... O-O {[%clk 0:02:50]} 14.
exf5 {[%clk 0:02:54.9]} 14... Bxd5 {[%clk 0:02:49.8]} 15. f6 {[%clk 0:02:53.7]}
15... h6 {[%clk 0:02:43.2]} 16. Qf5 {[%clk 0:02:35.8]} 16... e4 {[%clk
0:02:34.7]} 17. fxg7 {[%clk 0:02:24]} 17... Kxg7 {[%clk 0:02:28.4]} 18. Qxd5
{[%clk 0:02:21.7]} 18... exd3 {[%clk 0:02:28.2]} 19. Qxc6 {[%clk 0:02:21.3]}
19... dxc2 {[%clk 0:02:28.6]} 20. Nxc2 {[%clk 0:02:19.6]} 20... Rc8 {[%clk
0:02:28.1]} 21. Qe4 {[%clk 0:02:19.7]} 21... Rc4 {[%clk 0:02:27.3]} 22. Qe2
{[%clk 0:02:14.2]} 22... Re8 {[%clk 0:02:25.7]} 23. Ne3 {[%clk 0:02:13.5]} 23...
Rce4 {[%clk 0:02:23.1]} 24. Rad1 {[%clk 0:02:11.7]} 24... d5 {[%clk 0:02:23]}
25. Qf3 {[%clk 0:02:03.7]} 25... d4 {[%clk 0:02:19]} 26. Nf5+ {[%clk 0:02:03]}
26... Kh7 {[%clk 0:02:18.7]} 27. Qh5 {[%clk 0:01:59.7]} 27... Qf6 {[%clk
0:02:12.6]} 28. Ng3 {[%clk 0:01:55.6]} 28... Rf4 {[%clk 0:02:04.1]} 29. Qd5
{[%clk 0:01:50.1]} 29... Rd8 {[%clk 0:01:57.7]} 30. Nh5 {[%clk 0:01:49.3]} 30...
Rxd5 {[%clk 0:01:53.7]} 31. Nxf6+ {[%clk 0:01:47.4]} 31... Rxf6 {[%clk
0:01:54.6]} 32. Rd3 {[%clk 0:01:42.8]} 32... Rc6 {[%clk 0:01:48.9]} 33. Rfd1
{[%clk 0:01:40.6]} 33... Rc2 {[%clk 0:01:46.8]} 34. R3d2 {[%clk 0:01:40.4]}
34... Rdc5 {[%clk 0:01:24.4]} 35. Kf1 {[%clk 0:01:37.4]} 35... Rxd2 {[%clk
0:01:17.4]} 36. Rxd2 {[%clk 0:01:37.3]} 36... Rc1+ {[%clk 0:01:17.4]} 37. Ke2
{[%clk 0:01:37.1]} 37... Ra1 {[%clk 0:01:03.5]} 38. a3 {[%clk 0:01:31.2]} 38...
Rh1 {[%clk 0:00:56.1]} 39. h3 {[%clk 0:01:21.4]} 39... Rg1 {[%clk 0:00:50.9]}
40. g3 {[%clk 0:01:20.4]} 40... Rc1 {[%clk 0:00:42.1]} 41. Rxd4 {[%clk
0:01:19.4]} 41... Rc2+ {[%clk 0:00:42.4]} 42. Rd2 {[%clk 0:01:19.3]} 42... Rc6
{[%clk 0:00:42.3]} 43. g4 {[%clk 0:01:17.5]} 43... Kg6 {[%clk 0:00:42.3]} 44.
Kf3 {[%clk 0:01:13.6]} 44... f5 {[%clk 0:00:39.9]} 45. Kf4 {[%clk 0:01:10.3]}
45... Rc4+ {[%clk 0:00:28.1]} 46. Kg3 {[%clk 0:01:09.7]} 46... Rc6 {[%clk
0:00:22.3]} 47. Rd5 {[%clk 0:00:57.7]} 47... fxg4 {[%clk 0:00:20.1]} 48. hxg4
{[%clk 0:00:58.6]} 48... Rc2 {[%clk 0:00:12.5]} 49. Rd6+ {[%clk 0:00:58.5]}
49... Kg7 {[%clk 0:00:12.5]} 50. Rxa6 {[%clk 0:00:58.2]} 50... Rxb2 {[%clk
0:00:12.7]} 51. f3 {[%clk 0:00:52.9]} 51... Rb3 {[%clk 0:00:12.7]} 52. Kf4
{[%clk 0:00:48.3]} 52... Kf7 {[%clk 0:00:10.7]} 53. Rxh6 {[%clk 0:00:46.8]}
53... Rxa3 {[%clk 0:00:10]} 54. Rb6 {[%clk 0:00:46.7]} 54... Rb3 {[%clk
0:00:10.1]} 55. g5 {[%clk 0:00:46.5]} 55... b4 {[%clk 0:00:10.2]} 56. Kg4 {[%clk
0:00:45.8]} 56... Rb1 {[%clk 0:00:10.1]} 57. f4 {[%clk 0:00:45.7]} 57... b3
{[%clk 0:00:10.5]} 58. Kf5 {[%clk 0:00:42.7]} 58... b2 {[%clk 0:00:10.6]} 59.
Rb7+ {[%clk 0:00:42.9]} 59... Ke8 {[%clk 0:00:10.5]} 60. g6 {[%clk 0:00:40.2]}
60... Kf8 {[%clk 0:00:09.1]} 61. Kf6 {[%clk 0:00:39]} 61... Ke8 {[%clk 0:00:08]}
62. g7 {[%clk 0:00:37.8]} 62... Rg1 {[%clk 0:00:06]} 63. Rxb2 {[%clk 0:00:37]}
1-0

[Event "*** Titled Tuesday Blitz"]
[Site "Chess.com"]
[Date "2020.04.21"]
[Round "4"]
[White "Zurability"]
[Black "enriquetejedor"]
[Result "1-0"]
[WhiteElo "2730"]
[BlackElo "2518"]
[TimeControl "180+1"]
[EndTime "10:40:55 PDT"]
[Termination "Zurability won on time"]

1. c4 {[%clk 0:03:00.9]} 1... c6 {[%clk 0:02:54]} 2. Nf3 {[%clk 0:03:00.3]} 2...
d5 {[%clk 0:02:54.9]} 3. g3 {[%clk 0:02:59.9]} 3... Nf6 {[%clk 0:02:53.4]} 4.
Bg2 {[%clk 0:03:00.3]} 4... Bf5 {[%clk 0:02:51.4]} 5. O-O {[%clk 0:02:57.1]}
5... e6 {[%clk 0:02:51.3]} 6. d3 {[%clk 0:02:56.9]} 6... h6 {[%clk 0:02:49.1]}
7. Be3 {[%clk 0:02:56.3]} 7... Nbd7 {[%clk 0:02:35.9]} 8. Qb3 {[%clk 0:02:56]}
8... Qc8 {[%clk 0:02:34.9]} 9. Nc3 {[%clk 0:02:55.8]} 9... a6 {[%clk 0:02:33.2]}
10. Rac1 {[%clk 0:02:52.7]} 10... Be7 {[%clk 0:02:31]} 11. cxd5 {[%clk
0:02:48.8]} 11... exd5 {[%clk 0:02:29.5]} 12. Nd4 {[%clk 0:02:44.9]} 12... Nc5
{[%clk 0:02:22.7]} 13. Qd1 {[%clk 0:02:42.2]} 13... Bh3 {[%clk 0:02:17.9]} 14.
b4 {[%clk 0:02:40.4]} 14... Bxg2 {[%clk 0:02:16.5]} 15. Kxg2 {[%clk 0:02:33.7]}
15... Ne6 {[%clk 0:02:16.9]} 16. Na4 {[%clk 0:02:09.6]} 16... Ng5 {[%clk
0:02:01.5]} 17. f4 {[%clk 0:01:42.9]} 17... Qh3+ {[%clk 0:01:53.2]} 18. Kh1
{[%clk 0:01:43.2]} 18... Ng4 {[%clk 0:01:52.6]} 19. Bg1 {[%clk 0:01:42.5]} 19...
Ne6 {[%clk 0:01:40.7]} 20. Nxe6 {[%clk 0:01:09.8]} 20... fxe6 {[%clk 0:01:41.6]}
21. Rf3 {[%clk 0:01:05.8]} 21... O-O {[%clk 0:01:37.7]} 22. Qf1 {[%clk
0:00:49.5]} 22... Qxf1 {[%clk 0:01:30.1]} 23. Rfxf1 {[%clk 0:00:45]} 23... Bxb4
{[%clk 0:01:30.8]} 24. Rb1 {[%clk 0:00:44.6]} 24... a5 {[%clk 0:01:31.1]} 25.
Bc5 {[%clk 0:00:39.2]} 25... Rfb8 {[%clk 0:01:27.6]} 26. a3 {[%clk 0:00:32.6]}
26... Bd2 {[%clk 0:00:56.3]} 27. Rb2 {[%clk 0:00:32]} 27... Be3 {[%clk
0:00:51.7]} 28. h3 {[%clk 0:00:32.3]} 28... Bxc5 {[%clk 0:00:48.7]} 29. Nxc5
{[%clk 0:00:33.2]} 29... Ne3 {[%clk 0:00:48.3]} 30. Rfb1 {[%clk 0:00:33.7]}
30... b5 {[%clk 0:00:37.5]} 31. Nxe6 {[%clk 0:00:33.8]} 31... b4 {[%clk
0:00:26.1]} 32. Kg1 {[%clk 0:00:22.5]} 32... Kh7 {[%clk 0:00:18.4]} 33. Kf2
{[%clk 0:00:20.2]} 33... bxa3 {[%clk 0:00:08.1]} 34. Rxb8 {[%clk 0:00:10.8]}
34... Rxb8 {[%clk 0:00:08.2]} 35. Rxb8 {[%clk 0:00:06]} 35... a2 {[%clk
0:00:05.2]} 36. Kxe3 {[%clk 0:00:03.4]} 36... a1=Q {[%clk 0:00:04.9]} 37. Nf8+
{[%clk 0:00:02.8]} 37... Kg8 {[%clk 0:00:04.6]} 38. Ng6+ {[%clk 0:00:03.4]}
38... Kf7 {[%clk 0:00:03.3]} 39. f5 {[%clk 0:00:03.7]} 39... Qg1+ {[%clk
0:00:01.5]} 40. Kd2 {[%clk 0:00:04.1]} 1-0

[Event "*** Titled Tuesday Blitz"]
[Site "Chess.com"]
[Date "2020.04.21"]
[Round "4"]
[White "Harsha_Bharathakoti"]
[Black "Flawless_Fighter"]
[Result "1-0"]
[WhiteElo "2793"]
[BlackElo "2548"]
[TimeControl "180+1"]
[EndTime "10:40:56 PDT"]
[Termination "Harsha_Bharathakoti won on time"]

1. c4 {[%clk 0:03:00.9]} 1... Nf6 {[%clk 0:02:59.6]} 2. Nc3 {[%clk 0:02:59.5]}
2... e6 {[%clk 0:03:00.2]} 3. Nf3 {[%clk 0:02:57.8]} 3... d5 {[%clk 0:03:00.5]}
4. e3 {[%clk 0:02:58.4]} 4... Be7 {[%clk 0:02:59.6]} 5. b3 {[%clk 0:02:58]} 5...
O-O {[%clk 0:02:57.8]} 6. Bb2 {[%clk 0:02:58.6]} 6... c5 {[%clk 0:02:57.6]} 7.
cxd5 {[%clk 0:02:58.8]} 7... exd5 {[%clk 0:02:58.2]} 8. d4 {[%clk 0:02:59.2]}
8... Nc6 {[%clk 0:02:58.2]} 9. Be2 {[%clk 0:02:55]} 9... Ne4 {[%clk 0:02:58]}
10. O-O {[%clk 0:02:51.4]} 10... Bf6 {[%clk 0:02:57.6]} 11. Rc1 {[%clk
0:02:51.3]} 11... Qa5 {[%clk 0:02:49]} 12. Nxd5 {[%clk 0:02:49.8]} 12... cxd4
{[%clk 0:02:35.4]} 13. Nxf6+ {[%clk 0:02:47.4]} 13... Nxf6 {[%clk 0:02:36.3]}
14. Nxd4 {[%clk 0:02:43]} 14... Qxa2 {[%clk 0:02:31.4]} 15. Qc2 {[%clk
0:01:51.4]} 15... Nxd4 {[%clk 0:02:24]} 16. Bxd4 {[%clk 0:01:52.3]} 16... Qxc2
{[%clk 0:02:24.1]} 17. Rxc2 {[%clk 0:01:53.2]} 17... Be6 {[%clk 0:02:24.3]} 18.
b4 {[%clk 0:01:51.1]} 18... a6 {[%clk 0:01:28.6]} 19. Bxf6 {[%clk 0:01:40]}
19... gxf6 {[%clk 0:01:27.7]} 20. Bf3 {[%clk 0:01:40.6]} 20... Rab8 {[%clk
0:01:18.7]} 21. Rc7 {[%clk 0:01:35]} 21... b6 {[%clk 0:01:13.9]} 22. Ra1 {[%clk
0:01:09.2]} 22... Rfc8 {[%clk 0:01:03.2]} 23. Ra7 {[%clk 0:00:47.6]} 23... Rc4
{[%clk 0:00:59.3]} 24. R7xa6 {[%clk 0:00:21.6]} 24... Rxb4 {[%clk 0:00:51.8]}
25. h3 {[%clk 0:00:22.3]} 25... Rb2 {[%clk 0:00:49.3]} 26. Ra8 {[%clk
0:00:12.2]} 26... Rxa8 {[%clk 0:00:48.7]} 27. Rxa8+ {[%clk 0:00:13.1]} 27... Kg7
{[%clk 0:00:49.3]} 28. Rd8 {[%clk 0:00:12]} 28... b5 {[%clk 0:00:41.4]} 29. Bd5
{[%clk 0:00:12.4]} 29... Rd2 {[%clk 0:00:31.1]} 30. e4 {[%clk 0:00:12.6]} 30...
f5 {[%clk 0:00:30.5]} 31. f3 {[%clk 0:00:12.6]} 31... f4 {[%clk 0:00:27.9]} 32.
h4 {[%clk 0:00:04.8]} 32... h5 {[%clk 0:00:14.2]} 33. Kh2 {[%clk 0:00:04.7]}
33... Kf6 {[%clk 0:00:13.9]} 34. Kg1 {[%clk 0:00:02.4]} 34... Ke7 {[%clk
0:00:11]} 35. Rb8 {[%clk 0:00:02.5]} 35... Bxd5 {[%clk 0:00:11.2]} 36. exd5
{[%clk 0:00:03.4]} 36... Rxd5 {[%clk 0:00:11.3]} 37. Rb7+ {[%clk 0:00:03]} 37...
Kf6 {[%clk 0:00:11.2]} 38. Kf2 {[%clk 0:00:03.5]} 38... Rd2+ {[%clk 0:00:08]}
39. Kf1 {[%clk 0:00:04]} 39... Rb2 {[%clk 0:00:08.3]} 40. Rb6+ {[%clk
0:00:03.3]} 40... Ke5 {[%clk 0:00:06.9]} 41. Rb7 {[%clk 0:00:03.8]} 41... f6
{[%clk 0:00:06]} 42. Kg1 {[%clk 0:00:02.2]} 42... b4 {[%clk 0:00:05]} 43. Rb5+
{[%clk 0:00:02]} 43... Kd4 {[%clk 0:00:05.1]} 44. Rxh5 {[%clk 0:00:02.9]} 44...
b3 {[%clk 0:00:05.3]} 45. Rb5 {[%clk 0:00:01.6]} 45... Kc4 {[%clk 0:00:02.6]}
46. Rb8 {[%clk 0:00:01.7]} 46... Rd2 {[%clk 0:00:02.9]} 47. h5 {[%clk
0:00:01.9]} 47... Rd5 {[%clk 0:00:03.4]} 48. h6 {[%clk 0:00:02.3]} 48... Rh5
{[%clk 0:00:01.2]} 49. Rc8+ {[%clk 0:00:01.8]} 1-0